Cogmind - Beta 17 @@@ ROGUE MODE // 2026.07.02 @ 13:05:59 Player: beans Result: Destroyed by S-10 Pest with Light Assault Rifle Performance ------------- Evolutions (2) 1000 Regions Visited (3) 600 Robots Destroyed (41) 205 Value Destroyed (954) 954 Prototype IDs (0) 0 Alien Tech Used (0) 0 Bonus (0) 0 TOTAL SCORE: 2759 Bonus ------- None Cogmind --------- Core Integrity 0/550 Matter 224/300 Energy 99/100 System Corruption 0% Temperature Cool (0) Movement Core (50) Location -8/Materials Parts ------- > --- POWER (1) -------- (None) > --- PROPULSION (3) --- (None) > --- UTILITY (2) ------ (None) > --- WEAPON (5) ------- (None) > --- INVENTORY (5) ---- High-capacity Matter Pod (0) High-capacity Matter Pod (0) Peak State ------------ > --- POWER ------------ Light Nuclear Core > --- PROPULSION ------- Light Treads Light Treads > --- UTILITY ---------- Improved Heat Sink High-capacity Matter Pod > --- WEAPON ----------- Assault Rifle Assault Rifle High-powered Shotgun High-powered Shotgun High-powered Shotgun > --- INVENTORY -------- High-capacity Matter Pod Light Assault Rifle Light Assault Rifle Rocket Launcher [Rating: 20] Favorites ----------- Power Light Ion Engine Engine Light Ion Engine Power Core Light Nuclear Core Propulsion Light Treads Treads Light Treads Leg Aluminum Leg Utility High-capacity Matter Pod Device Improved Heat Sink Storage High-capacity Matter Pod Protection Hardened Light Armor Plating Weapon Light Assault Rifle Ballistic Gun Light Assault Rifle Launcher Rocket Launcher Build | -11 -10 -9 -8 ------- Run | Yrd Mat Mat Mat Slots Evolved 4 | . . 2 2 Power . | . . . . Propulsion 1 | . . . 1 Utility . | . . . . Weapon 3 | . . 2 1 Parts Attached 22 | 5 . 11 6 Power 3 | 1 . 1 1 Engine 2 | 1 . 1 . Core 1 | . . . 1 Reactor . | . . . . Propulsion 4 | 2 . 2 . Treads 2 | . . 2 . Leg 2 | 2 . . . Wheel . | . . . . Hover . | . . . . Flight . | . . . . Utility 4 | . . 3 1 Device 1 | . . . 1 Storage 2 | . . 2 . Processor . | . . . . Hackware . | . . . . Protection 1 | . . 1 . Artifact . | . . . . Weapon 11 | 2 . 5 4 Energy Gun . | . . . . Energy Cannon . | . . . . Ballistic Gun 9 | 2 . 4 3 Ballistic Cannon . | . . . . Launcher 2 | . . 1 1 Special Weapon . | . . . . Impact Weapon . | . . . . Slashing Weapon . | . . . . Piercing Weapon . | . . . . Special Melee Weapon . | . . . . Unidentified Prototypes . | . . . . Parts Lost 18 | . . 6 12 Power 3 | . . 2 1 Propulsion 4 | . . 2 2 Utility 1 | . . . 1 Weapon 10 | . . 2 8 Highest Loss Streak 12 | . . 3 12 To Critical Strikes . | . . . . Average Backups 3 | . 2 2 4 Power . | . . . . Propulsion . | . . . . Utility 1 | . 1 1 1 Weapon 1 | . . 1 2 Tool/Special . | . . . . Unused Backups . | . . . . Power . | . . . . Propulsion . | . . . . Utility . | . . . . Weapon . | . . . . Tool/Special . | . . . . Average Slot Usage (%) 74 | . 71 67 82 Engine 5 | . 14 7 . Core 2 | . . . 6 Treads 10 | . . 9 16 Leg 8 | . 28 5 . Storage 9 | . . 13 10 Protection 2 | . . . 5 Ballistic Gun 34 | . 28 29 41 Peak Build Rating 20 | 5 5 9 20 Average Rating 10 | 3 5 6 16 On Entrance 4 | . 5 5 9 Avg Prop Armor Cover (%) . | . . . . Naked Turns 9 | . . . 9 Heaviest Build 27 | 6 6 14 27 Greatest Support 40 | 20 20 40 40 Greatest Overweight (x) 1 | . . 1 . Average Overweight (x) . | . . . . Largest Inventory Capacity 5 | 5 5 5 5 Average Capacity 5 | 5 5 5 5 Most Carried 5 | 3 3 5 5 Average Carried 3 | . 2 2 4 Final Capacity 5 | 5 5 5 5 Final Carried 5 | . 3 5 2 Class Distribution -------------------- 36% | Mutant 27% | Scavenger-Gunner 26% | Tank 9% | Gunner Dominant Class ---------------- Mutant | -10/Materials Scavenger-Gunner | -9/Materials Tank | -8/Materials Resources | -11 -10 -9 -8 ----------- Run | Yrd Mat Mat Mat Matter Collected 912 | 104 164 218 426 Remotely . | . . . . Salvage Created 1085 | . 179 466 440 Parts 82 | . 16 42 24 Haulers Intercepted 3 | . 1 2 . Recyclers Shooed . | . . . . Parts Field Recycled . | . . . . Retrieved Matter . | . . . . Parts Self-Destructed . | . . . . Prevented . | . . . . Parts Restored . | . . . . Kills | -11 -10 -9 -8 ------- Run | Yrd Mat Mat Mat Combat Hostiles Destroyed 25 | . 4 8 13 Melee 1 | . . . 1 Guns 17 | . 4 5 8 AOE 7 | . . 3 4 Classes Destroyed 10 | . 3 7 . Worker 1 | . . 1 . Builder 6 | . . 3 3 Tunneler 1 | . . 1 . Hauler 3 | . 1 2 . Recycler 2 | . . 1 1 Operator 2 | . . 1 1 Watcher 1 | . . 1 . Swarmer 8 | . 1 4 3 Grunt 15 | . 3 2 10 Sentry 2 | . . 2 . Best Kill Streak 10 | . 5 9 10 Combat Bots Only 10 | . 3 6 10 Max Kills in Single Turn 5 | . 1 5 2 Gunslinging . | . . . . Exploded 3 | . . 3 2 Melee 1 | . . . 1 Uniques/NPCs Destroyed . | . . . . Combat | -11 -10 -9 -8 -------- Run | Yrd Mat Mat Mat Hostile Shots Fired 211 | . 24 52 135 Missed 55 | . 8 16 31 Hits 156 | . 16 36 104 Projectile 156 | . 16 36 104 Critical Strikes 5 | . . 1 4 Damage Taken 2373 | . 182 502 1689 Core 726 | . 55 112 559 Absorbed by Shields . | . . . . Core Remaining (%) 83 | 100 78 72 . Volleys Fired 80 | . 21 33 26 Largest 5 | . 2 4 5 Hottest 115 | . 40 80 115 Shots Fired 235 | . 42 91 102 Gun 230 | . 42 90 98 Cannon . | . . . . Launcher 5 | . . 1 4 Special . | . . . . Kinetic 230 | . 42 90 98 Thermal . | . . . . Explosive 5 | . . 1 4 Electromagnetic . | . . . . Robot Hit Streak 16 | . 4 16 5 Robot Miss Streak 6 | . 6 2 5 Penetration Max . | . . . . Secondary Targets 7 | . . 2 5 Max Gunslinging Chain 1 | . . 1 1 Shots Hit Robots 126 | . 18 59 49 Core Hits 70 | . 10 28 32 Critical Kills 1 | . 1 . . Critical Parts Destroyed 1 | . . . 1 Critical Strikes 3 | . 1 1 1 Destroy 3 | . 1 1 1 Melee Attacks . | . . . . Impact . | . . . . Slashing . | . . . . Piercing . | . . . . Sneak Attacks . | . . . . Combat Hostiles . | . . . . Follow-up Attacks . | . . . . Damage Inflicted 3108 | . 206 1037 1865 Guns 1626 | . 206 531 889 Cannons . | . . . . Explosions 1482 | . . 506 976 Melee . | . . . . Ramming . | . . . . Kinetic 1626 | . 206 531 889 Thermal 648 | . . . 648 Explosive 834 | . . 506 328 Electromagnetic . | . . . . Impact . | . . . . Slashing . | . . . . Piercing . | . . . . Highest Corruption 2 | . 2 . . Average Corruption 2 | . 2 . . Corruption Purged . | . . . . Corruption Blocked . | . . . . Overload Shots . | . . . . Overflow Damage 365 | . . 192 173 Projectiles . | . . . . Explosions 365 | . . 192 173 Melee . | . . . . Knockbacks . | . . . . Impact . | . . . . Kinetic . | . . . . Secondary . | . . . . Self-Inflicted Damage 295 | . . 98 197 Shots 4 | . . 2 2 Rammed 1 | . . . 1 Targets Rammed 2 | . . . 2 Kicked . | . . . . Crushed 1 | . . . 1 Highest Temperature 405 | . 12 40 405 Average Temperature 118 | . 7 14 181 Received Heat Transfer 1047 | . 90 129 828 Effects 4 | . . . 4 Shutdowns 1 | . . . 1 Interference 2 | . . . 2 Damage (minor) 1 | . . . 1 Siege Activations . | . . . . Martial Activations . | . . . . Shielding Activations . | . . . . Robots Disrupted . | . . . . Combat Hostiles . | . . . . Robots Corrupted . | . . . . Combat Hostiles . | . . . . Parts Fried . | . . . . Impact Corruptions . | . . . . Robots Melted . | . . . . Combat Hostiles . | . . . . Parts Melted . | . . . . Heat Transferred 500 | . . . 500 Parts Sabotaged . | . . . . Parts Stolen . | . . . . Parts Stripped . | . . . . Power Chain Reactions . | . . . . Alert | -11 -10 -9 -8 ------- Run | Yrd Mat Mat Mat Maximum Alert Level 1 | . . . 1 Low Security (%) 97 | 100 100 100 94 Level 1 2 | . . . 5 Level 2 . | . . . . Level 3 . | . . . . Level 4 . | . . . . Level 5 . | . . . . High Security . | . . . . Max Security . | . . . . Peak Influence 232 | . 57 174 232 Initial 56 | . . 13 56 Average 64 | . 27 109 50 Influence Increases 834 | . 102 315 417 Destroy 0b10 Robot/C 500 | . 80 160 260 Destroy 0b10 Robot/NC 80 | . 5 50 25 Destroy Leader 88 | . 2 46 40 Successful Hack 5 | . . . 5 Disable Machine 60 | . . 30 30 Destroy Structure 86 | . . 29 57 Lose Combat Pursuer 15 | . 15 . . Influence Decreases 652 | . 70 212 370 Entered New Map 98 | . . 19 79 Time Decay 394 | . 70 153 171 Lost Part 160 | . . 40 120 Squads Dispatched 7 | . 1 1 5 Investigation 1 | . . . 1 Extermination . | . . . . Reinforcement 5 | . 1 1 3 Assault . | . . . . Garrison 1 | . . . 1 Intercept . | . . . . Searches Triggered . | . . . . Construction Impeded . | . . . . Haulers Reinforced . | . . . . Active Scanning Responses . | . . . . Cargo Convoy Interrupts . | . . . . Stealth | -11 -10 -9 -8 --------- Run | Yrd Mat Mat Mat Distress Signals 5 | . 3 . 2 Communications Jammed . | . . . . Distress Signals . | . . . . Times Spotted 52 | . 8 13 31 Peak Tracking Total 15 | . 5 5 15 Tactical Retreats 1 | . 1 . . Traps | -11 -10 -9 -8 ------- Run | Yrd Mat Mat Mat Traps Triggered 4 | . 1 2 1 Indirectly . | . . . . Trap Hack Attempts . | . . . . Triggered . | . . . . Disarmed . | . . . . Reprogrammed . | . . . . Reused . | . . . . Traps Extracted . | . . . . Installed . | . . . . Triggered . | . . . . Machines | -11 -10 -9 -8 ---------- Run | Yrd Mat Mat Mat Machines Disabled 4 | . . 2 2 Max in Single Turn 2 | . . 2 2 Machines Repaired . | . . . . Machines Dismantled . | . . . . Machines Sabotaged . | . . . . Overloaded Fab Kills . | . . . . Hacking | -11 -10 -9 -8 --------- Run | Yrd Mat Mat Mat Machines Accessed 1 | . . . 1 Terminals 1 | . . . 1 Fabricators . | . . . . Repair Stations . | . . . . Recycling Units . | . . . . Scanalyzers . | . . . . Garrison Access . | . . . . Total Hacks 1 | . . . 1 Successful 1 | . . . 1 Failed . | . . . . Catastrophic . | . . . . Database Lockouts . | . . . . Manual . | . . . . Terminals 1 | . . . 1 Fabricators . | . . . . Repair Stations . | . . . . Recycling Units . | . . . . Scanalyzers . | . . . . Garrison Access . | . . . . Terminal Hacks 1 | . . . 1 Hauler Manifests 1 | . . . 1 Fabricator Hacks . | . . . . Repair Station Hacks . | . . . . Recycling Unit Hacks . | . . . . Scanalyzer . | . . . . Garrison Access Hacks . | . . . . Unauthorized Hacks . | . . . . Terminals . | . . . . Fabricators . | . . . . Repair Stations . | . . . . Recycling Units . | . . . . Scanalyzers . | . . . . Garrison Access . | . . . . Data Cores Recovered 1 | . . . 1 Used . | . . . . Hacking Detections . | . . . . Full Trace Events . | . . . . Feedback Events . | . . . . Feedback Blocked . | . . . . Robot Schematics Acquired . | . . . . Robots Built . | . . . . Authchips . | . . . . Time . | . . . . Total Robot Build Rating . | . . . . Part Schematics Acquired . | . . . . Parts Built . | . . . . Authchips . | . . . . Time . | . . . . Total Part Build Rating . | . . . . Part Studies Acquired . | . . . . Parts Repaired . | . . . . Time . | . . . . Parts Recycled . | . . . . Recycled Matter . | . . . . Retrieved Matter . | . . . . Retrieved Components . | . . . . Parts Scanalyzed . | . . . . Part Schematics Acquired . | . . . . Parts Damaged . | . . . . Bothacking | -11 -10 -9 -8 ------------ Run | Yrd Mat Mat Mat Used RIF Installer . | . . . . Robots Hacked . | . . . . Non-combat . | . . . . Combat . | . . . . Robot Hacks Applied . | . . . . Relay Couplers Released . | . . . . Fabnet Peak Effective % . | . . . . Robots Rewired . | . . . . Allies Hacked . | . . . . Hacks Repelled . | . . . . Allies | -11 -10 -9 -8 -------- Run | Yrd Mat Mat Mat Total Allies . | . . . . Largest Group . | . . . . Highest-Rated Group . | . . . . Highest-Rated Ally . | . . . . Total Orders . | . . . . Ally Attacks . | . . . . Total Damage . | . . . . Kills . | . . . . Allies Corrupted . | . . . . Allies Melted . | . . . . Intel | -11 -10 -9 -8 ------- Run | Yrd Mat Mat Mat Active Infowar (turns) . | . . . . Robot Analysis Total . | . . . . Derelict Logs Recovered . | . . . . Drone Launches . | . . . . Drone Recoveries . | . . . . Exploration | -11 -10 -9 -8 ------------- Run | Yrd Mat Mat Mat Turns Passed 1022 | 40 215 368 399 Spaces Moved 515 | 34 128 173 180 Core 44 | 14 . 11 19 Treads 265 | . . 104 161 Legs 206 | 20 128 58 . Wheels . | . . . . Hover . | . . . . Flight . | . . . . Fastest Speed 50 | 50 120 50 50 Average Speed 134 | 91 120 140 148 Slowest Speed 160 | 120 120 160 160 Overloaded Moves . | . . . . Propulsion Burnouts . | . . . . Robots Hopped . | . . . . Potential Cave-ins . | . . . . Cave-ins Triggered . | . . . . Exploration Rate (%) 20 | 4 27 22 28 Regions Visited 3 Branch Regions . Pre-discovered Areas . | . . . . Known Exits Taken . | . . . . Unknown Exits Taken 3 | 1 1 1 . Scrap Searched . | . . . . Spaces Dug . | . . . . Terrain Destroyed 92 | . . 33 59 Melee . | . . . . Projectile . | . . . . AOE 92 | . . 33 59 Terrain Rammed . | . . . . Walls Destroyed . | . . . . Machines Disabled . | . . . . Actions | -11 -10 -9 -8 --------- Run | Yrd Mat Mat Mat Total 686 | 43 151 241 251 Wait 37 | . . 11 26 Move 512 | 33 127 172 180 Hop . | . . . . Pick Up 22 | 5 3 11 3 Fast Attach 4 | . . 4 . Attach 20 | 5 . 9 6 Detach 1 | . . . 1 Swap 6 | . . 1 5 Drop 2 | . . . 2 Fire 80 | . 21 33 26 Melee . | . . . . Ram 1 | . . . 1 Kick . | . . . . Crush 1 | . . . 1 Escape Stasis . | . . . . Rewire . | . . . . Trap . | . . . . Miscellaneous . | . . . . Route ------- -11/Scrapyard -10/Materials -9/Materials (discovered 2 exits: *Mat / [*Min]) -8/Materials History --------- Turn | Location | Event 3 | -11/Scrapyard | Discovered new exit (range 16) 41 | -11/Scrapyard | Entered Materials 251 | -10/Materials | Discovered new exit (range 5) 256 | -10/Materials | Entered another Materials area 256 | -9/Materials | Evolved 2 slots: Weapon x2 311 | -9/Materials | Build established: Mutant 400 | -9/Materials | Lost 3 parts (1n2w) 554 | -9/Materials | Discovered new exit (range 12) 597 | -9/Materials | Discovered new exit (range 16) 624 | -9/Materials | Entered another Materials area 624 | -8/Materials | Evolved 2 slots: Propulsion x1, Weapon x1 951 | -8/Materials | Garrison activated, responded to threat 997 | -8/Materials | Core integrity fell below 50% 1017 | -8/Materials | Core integrity fell below 20% 1021 | -8/Materials | Destroyed 10 combat bots 1023 | -8/Materials | Destroyed by S-10 Pest with Light Assault Rifle Last Messages --------------- Lgt. Assault Rifle destroyed. U-05 Engineer builds a Wall. U-05 Engineer lays Concrete. U-05 Engineer builds a Wall. K-01 Serf collects debris. U-05 Engineer lays Concrete. Lgt. Assault Rifle destroyed. U-05 Engineer lays Concrete. K-01 Serf collects debris. U-05 Engineer lays Concrete. Slammed into U-05 Engineer. Destabilizing: System interference. Imp. Heat Sink temporarily disabled. Imp. Heat Sink destroyed. K-01 Serf collects debris. U-05 Engineer builds a Wall. U-05 Engineer lays Concrete. Acquired 10 matter. U-05 Engineer builds a Wall. Slug penetrates Fusion Modulator. Map ----- +----------------------------------------------------+ | ?????????????????????????????????????????????????? | | ?????????????????????????????????????????????????? | | ?????????????????????????????????????????????????? | | ?????????????????????????????????????????????????? | | ?????????????????????????????????????????????????? | | ?????????????????????????????????????????????????? | | ?????????????????????????????????????????????????? | | ?????????????????????????????????????????????????? | | ?????????????????????????????????????????????????? | | ?????????????????????????????????????????????????? | | ?????????????????????????????????????????????????? | | ??????????????????????????? "????????????????????? | | ??????????????????????????? ????????????????????? | | ??????????????????????????? ????????????????????? | | ??????????????????????????#o##???????????????????? | | ?????????????????????????? o #???????????????????? | | ?????????????????????????? #???????????????????? | | ?????????????????????????? #???????????????????? | | ?????????????????????????? #???????????????????? | | ?????????????????????????? #???????????????????? | | ?????????????????????????? #???????????????????? | | ??????????????????##+##### #???????????????????? | | ??????????????????# ##+###??????????????? | | ??????????????????+ #??????????????? | | ??????????????????# ##?????????????? | | ??????????????????+ ]! @ "#?????????????? | | ??????????????????# ]! T#?????????????? | | ??????????????????# "#?????????????? | | ?????????????????## """ ##?????????????? | | ????????########## s """ #??????????????? | | ???????? "T" """ ###????????????? | | ??????? s """ss ?????????? | | ???????? u h ?????????? | | ???????????####### [ ?????????? | | ???????????????#### #################??????????? | | ???????????????? ?# #?? #??????????????????? | | ????????????????? # # """ #??????????????????? | | ??????????????????+ + """ ]#??????????????????? | | ??????????????????# # """ #??????????????????? | | ??????????????????# #?? [???????????????????? | | ??????????????????# #########??????????????????? | | ??????????????????# #"""""""##?????????????????? | | ??????????????????# # #?????????????????? | | ??????????????????# #?????????????????? | | ??????????????????# = #?????????????????? | | ?????????????????## * "#????????????????? | | ?????????????????# = #????????????????? | | ???????????????# #???????????????? | | ???????????????# # [ ##########??????? | | ???????????? ? # # % % # #??????? | +----------------------------------------------------+ Best States ------------- Heat Dissipation 45 Energy Generation 14 Energy Capacity 160 Matter Stores 427 Matter Capacity 700 Sight Range 16 Terrain Scan Density 10 Armor Coverage 150 Evasion (%) 55 Recoil Reduction 2 Item Schematics ----------------- None Robot Schematics ------------------ None Fabricated ------------ Nothing Repaired ---------- Nothing Studied --------- None Alien Tech Used ----------------- None Achievements -------------- None Challenges ------------ None Game ------ Seed SiegeSpikedPlatform Manual? 0 Play Time 00:08:46 Cumulative 358.5 hours Start 2026.07.02 @ 13:00:03 End 2026.07.02 @ 13:05:59 Sessions 1 Manual Loads 0 Difficulty Rogue Special Mode None Game No. 891 Rogue 889 Adventurer 2 Explorer 0 Win Type - Total 1 Types 1/0/0/0/0/0/0/0/0/0 Lore% 50 Gallery% 67 Achievement% 53 Wizard Run 0 Options --------- Layout 2 ASCII 0 Keyboard 0 Movement Mouse Keybinds 0 Fullscreen 1 Font 24/Smallcaps Map View 50x44 Zoom Use 0% Tactical HUD 0 Map Filters NONE Filters NONE Steam 1 RUN: 83090e5d-7e55-4a24-afd5-7828b0c6ff5c